bitfinex-derivatives/quotes_BTCF0:USTF0_20241210
["timestamp","ask_amount","ask_price","bid_price","bid_amount"]
[1733855004879,0.001,95190.0,95189.0,0.36086]
[1733855005175,0.00157641,95204.0,95190.0,0.052518]
[1733855005477,0.00157641,95204.0,95203.0,0.413371]
[1733855005973,0.052505,95214.0,95209.0,0.052507]
[1733855006173,0.02129427,95227.0,95213.0,0.3608]
[1733855006374,0.02129427,95227.0,95226.0,0.3608]
[1733855006575,0.07379227,95227.0,95226.0,0.36086]
[1733855006977,0.00157588,95234.0,95226.0,0.36086]
[1733855007280,0.00157588,95234.0,95233.0,6e-05]
[1733855008478,0.02230485,95234.0,95233.0,6e-05]
[1733855011072,0.00157588,95234.0,95233.0,6e-05]
[1733855012878,0.00157588,95234.0,95226.0,6e-05]
[1733855012879,0.052498,95227.0,95226.0,6e-05]
[1733855013185,0.052498,95227.0,95205.0,0.00157559]
[1733855013186,0.052509,95207.0,95205.0,0.00157559]
[1733855013586,0.00012,95206.0,95205.0,0.00157559]
[1733855013975,0.00012,95206.0,95196.0,0.00010426]
[1733855013976,0.052514,95197.0,95196.0,0.00010426]
[1733855014378,0.052634,95197.0,95196.0,0.00010426]
[1733855015284,0.052526,95176.0,95175.0,0.3608]
[1733855015683,0.052646,95176.0,95175.0,0.3608]
[1733855015991,0.052533,95164.0,95163.0,0.00157628]
[1733855016284,0.052533,95164.0,95136.0,1.2848]
[1733855016285,0.052543,95146.0,95144.0,0.01021816]
[1733855016481,0.052543,95146.0,95137.0,0.052547]
[1733855016683,6e-05,95145.0,95137.0,0.052547]
[1733855016877,6e-05,95138.0,95137.0,0.052547]
[1733855017077,6e-05,95138.0,95137.0,0.713347]
[1733855017277,0.3608,95164.0,95137.0,0.3608]
[1733855017482,0.052536,95158.0,95147.0,0.052542]
[1733855017985,0.3608,95164.0,95151.0,0.052539]
[1733855018184,0.052533,95164.0,95151.0,0.052539]
[1733855018388,0.052533,95163.0,95151.0,0.052539]
[1733855018590,0.052533,95163.0,95152.0,0.052539]
[1733855018792,0.0212015,95169.0,95146.0,0.3608]
[1733855018793,0.3608,95156.0,95146.0,0.3608]
[1733855019095,0.052541,95150.0,95140.0,0.01024611]
[1733855019387,0.3608,95162.0,95146.0,0.3608]
[1733855019588,0.052533,95163.0,95154.0,0.413338]
[1733855019791,0.052531,95168.0,95161.0,0.00072002]
[1733855019991,0.052533,95164.0,95161.0,0.00072002]
[1733855020182,0.052533,95164.0,95146.0,0.3608]
[1733855020383,0.052533,95164.0,95154.0,0.052538]
[1733855020681,0.052529,95171.0,95161.0,0.052534]
[1733855020879,0.00010426,95175.0,95170.0,0.3608]
[1733855021082,0.052528,95172.0,95170.0,6e-05]
[1733855021688,0.00010426,95175.0,95174.0,0.052527]
[1733855022193,0.00010426,95175.0,95174.0,0.413387]
[1733855022789,0.00010426,95175.0,95174.0,0.42403593]
[1733855023293,0.41331,95206.0,95174.0,0.37150893]
[1733855023294,0.3608,95206.0,95174.0,0.37150893]
[1733855023497,0.00056001,95206.0,95189.0,0.3608]
[1733855023695,0.00157637,95207.0,95198.0,0.3608]
[1733855023884,0.00157637,95207.0,95189.0,0.3608]
[1733855024087,0.052513,95200.0,95196.0,0.052515]
[1733855024287,0.052513,95200.0,95198.0,0.052514]
[1733855024489,0.00157637,95207.0,95206.0,0.052509]
[1733855024881,0.052504,95216.0,95206.0,0.052569]
[1733855025199,0.078758,95208.0,95207.0,6e-05]
[1733855027691,0.08934777,95208.0,95207.0,0.00106]
[1733855027996,0.052517,95193.0,95192.0,7.673e-05]
[1733855028187,0.052529,95171.0,95164.0,0.3608]
[1733855028892,0.3608,95173.0,95164.0,0.3608]
[1733855029195,0.3608,95173.0,95169.0,0.05410579]
[1733855029196,7.673e-05,95172.0,95169.0,0.05410579]
[1733855029495,7.673e-05,95172.0,95169.0,0.00157579]
[1733855029693,7.673e-05,95172.0,95170.0,0.052589]
[1733855031109,7.673e-05,95172.0,95170.0,6e-05]
[1733855031287,0.05260473,95172.0,95170.0,6e-05]
[1733855033996,7.673e-05,95172.0,95144.0,0.00010789]
[1733855034289,0.00012,95145.0,95144.0,0.00010789]
[1733855034491,0.00012,95145.0,95144.0,0.41345189]
[1733855034994,0.00012,95145.0,95144.0,0.42407238]
[1733855035398,0.00012,95145.0,95144.0,0.72407238]
[1733855035601,0.02627,95146.0,95144.0,0.72407238]
[1733855035602,7.673e-05,95172.0,95144.0,0.67752838]
[1733855035802,7.673e-05,95172.0,95162.0,0.3608]
[1733855036105,7.673e-05,95172.0,95165.0,0.052532]
[1733855036106,0.052532,95166.0,95165.0,0.052532]
[1733855036791,0.052533,95163.0,95162.0,0.3608]
[1733855037195,0.052534,95162.0,95152.0,0.052539]
[1733855037400,0.052536,95157.0,95156.0,0.3608]
[1733855038093,0.052539,95153.0,95152.0,0.01059861]
[1733855038295,0.052539,95153.0,95151.0,0.3011]
[1733855038808,0.052539,95153.0,95152.0,0.413339]
[1733855039504,0.052539,95153.0,95152.0,0.052539]
[1733855039903,0.001,95163.0,95152.0,0.052539]
[1733855039904,0.052535,95159.0,95158.0,0.052534]
[1733855040096,0.052535,95159.0,95151.0,0.31138195]
[1733855040097,0.02627,95165.0,95154.0,0.3608]
[1733855040296,0.052539,95152.0,95151.0,0.01028195]
[1733855040501,0.00012,95155.0,95144.0,0.00010789]
[1733855040702,0.00012,95155.0,95153.0,0.052538]
[1733855040906,0.02627,95165.0,95164.0,0.052533]
[1733855041297,0.02627,95165.0,95164.0,0.052593]
[1733855041702,0.00157648,95191.0,95171.0,0.052528]
[1733855041910,0.00157648,95191.0,95171.0,0.3608]
[1733855042206,0.3608,95172.0,95164.0,0.18788709]
[1733855042396,0.3608,95165.0,95151.0,0.18815992]
[1733855042594,0.001,95153.0,95152.0,0.052539]
[1733855043303,0.00012,95165.0,95152.0,0.052539]
[1733855043508,0.00012,95165.0,95164.0,0.052532]
[1733855043701,0.00012,95165.0,95164.0,0.05513201]
[1733855044211,0.00012,95165.0,95164.0,0.24341222]
[1733855044705,0.00012,95165.0,95164.0,0.05513201]
[1733855045007,0.00012,95165.0,95164.0,0.30617229]
[1733855045192,0.00012,95165.0,95164.0,0.05513201]
[1733855045400,0.00012,95165.0,95164.0,0.05313201]
[1733855045798,0.00012,95165.0,95164.0,0.30417079]
[1733855045996,0.00012,95165.0,95164.0,0.05313201]
[1733855047001,0.00012,95165.0,95164.0,0.05513201]
[1733855047594,0.3608,95188.0,95187.0,0.05252]
[1733855047797,0.3608,95188.0,95178.0,0.18831428]
[1733855048004,0.052532,95165.0,95164.0,0.002]
[1733855048212,0.413332,95165.0,95164.0,0.002]
[1733855048507,0.052535,95159.0,95158.0,0.01027294]
[1733855048699,0.052535,95159.0,95155.0,0.00068]
[1733855048700,0.052537,95156.0,95155.0,0.00068]
[1733855048900,0.413337,95156.0,95155.0,0.00068]
[1733855049096,0.052543,95145.0,95144.0,0.00168427]
[1733855049294,0.413343,95145.0,95144.0,0.00168427]
[1733855049501,0.413403,95145.0,95144.0,0.00168427]
[1733855052599,0.413403,95145.0,95144.0,0.05422727]
[1733855052600,6e-05,95145.0,95144.0,0.05422727]
[1733855053207,6e-05,95145.0,95144.0,0.00168427]
[1733855053510,0.1467378,95145.0,95144.0,0.00168427]
[1733855053695,0.00016789,95145.0,95126.0,0.052553]
[1733855053894,0.3608,95128.0,95126.0,0.052553]
[1733855054210,0.052613,95127.0,95124.0,0.01064976]
[1733855054406,0.052613,95127.0,95121.0,0.3608]
[1733855054407,0.052554,95125.0,95121.0,0.3608]
[1733855054601,0.052554,95125.0,95111.0,0.18989143]
[1733855054602,6e-05,95125.0,95111.0,0.18989143]
[1733855054804,6e-05,95125.0,95111.0,0.00157715]
[1733855054805,0.7216,95112.0,95111.0,0.00157715]
[1733855055114,0.72166,95112.0,95111.0,0.00157715]
[1733855055295,0.72166,95112.0,95100.0,0.11041219]
[1733855055296,0.052567,95101.0,95100.0,0.1]
[1733855055497,0.3608,95101.0,95100.0,0.1]
[1733855055706,0.36086,95101.0,95100.0,0.1]
[1733855056206,6e-05,95101.0,95100.0,0.1]
[1733855058906,6e-05,95101.0,95100.0,0.4608]
[1733855059211,6e-05,95101.0,95100.0,0.1]
[1733855059409,6e-05,95101.0,95100.0,0.28781381]
[1733855059605,6e-05,95101.0,95100.0,0.1]
[1733855060206,6e-05,95101.0,95100.0,0.28981078]
[1733855060407,6e-05,95101.0,95100.0,0.102]
[1733855060610,0.0015775,95128.0,95123.0,0.052555]
[1733855060904,0.0015775,95128.0,95123.0,0.774155]
[1733855061132,0.0015775,95128.0,95123.0,0.052555]
[1733855061297,0.0015775,95128.0,95123.0,0.774155]
[1733855062304,0.0015775,95128.0,95123.0,1.074155]
[1733855062509,0.052539,95151.0,95149.0,0.05254]
[1733855062898,0.052539,95151.0,95150.0,0.00096001]
[1733855063703,0.052539,95151.0,95123.0,0.37137567]
[1733855063704,0.3,95151.0,95129.0,0.18777501]
[1733855064012,0.3,95151.0,95113.0,0.31385714]
[1733855064013,0.052554,95126.0,95110.0,0.052562]
[1733855064211,6e-05,95130.0,95110.0,0.15888878]
[1733855064510,6e-05,95111.0,95110.0,0.21145078]
[1733855064701,0.3608,95141.0,95112.0,0.05256]
[1733855064899,0.3608,95141.0,95125.0,0.3608]
[1733855065102,0.052547,95138.0,95125.0,0.3608]
[1733855065302,0.052547,95138.0,95136.0,0.052548]
[1733855065511,0.052551,95131.0,95130.0,0.052551]
[1733855065717,0.3608,95141.0,95118.0,0.052558]
[1733855065718,0.052558,95119.0,95118.0,0.052558]
[1733855065912,0.3608,95132.0,95110.0,0.003]
[1733855065913,0.052558,95118.0,95112.0,0.052561]
[1733855066110,0.052558,95118.0,95101.0,0.3106]
[1733855066111,0.3608,95117.0,95100.0,0.1]
[1733855066414,0.774227,95101.0,95100.0,0.1]
[1733855066600,0.774227,95101.0,95100.0,0.02064314]
[1733855066804,0.774227,95101.0,95085.0,0.00157758]
[1733855066805,0.052576,95086.0,95085.0,0.00157758]
[1733855067004,0.413376,95086.0,95085.0,0.00157758]
[1733855067209,0.413436,95086.0,95085.0,0.00157758]
[1733855067412,0.713436,95086.0,95084.0,5.8e-07]
[1733855067614,0.052587,95066.0,95065.0,0.00068]
[1733855067909,0.052587,95066.0,95056.0,0.00157805]
[1733855067910,0.052592,95057.0,95056.0,0.00157805]
[1733855068311,0.052652,95057.0,95056.0,0.00157805]
[1733855068510,0.05276254,95057.0,95056.0,0.00157805]
[1733855069405,0.30017054,95057.0,95038.0,0.0459971]
[1733855069605,0.774202,95039.0,95038.0,0.0459971]
[1733855069805,0.774262,95039.0,95038.0,0.0459971]
[1733855070304,0.774262,95039.0,95016.0,0.00157872]
[1733855070305,1.074262,95039.0,95016.0,0.00157872]
[1733855070504,0.413407,95030.0,95016.0,0.00157872]
[1733855070803,0.413467,95030.0,95016.0,0.00157872]
[1733855071312,6e-05,95030.0,95028.0,0.052607]
[1733855071510,6e-05,95030.0,95026.0,0.3608]
[1733855071714,0.413467,95030.0,95016.0,0.00157872]
[1733855071907,0.052614,95017.0,95016.0,0.00157872]
[1733855072212,0.413474,95017.0,95016.0,0.00157872]
[1733855072801,0.413474,95017.0,95000.0,0.11021617]
[1733855072802,0.66099564,95017.0,95000.0,0.1]
[1733855073109,0.774283,95001.0,95000.0,0.1]
[1733855073513,0.00012436,95000.0,94963.0,0.00010251]
[1733855073709,0.3608,94968.0,94963.0,0.01055117]
[1733855073908,0.3608,94968.0,94963.0,0.00010251]
[1733855074212,0.052643,94964.0,94963.0,0.00010251]
[1733855074603,0.052643,94964.0,94930.0,0.00068]
[1733855074604,0.35354,94964.0,94930.0,0.00068]
[1733855074915,6e-05,94931.0,94930.0,0.01128609]
[1733855075221,6e-05,94931.0,94928.0,0.052663]
[1733855075515,0.3608,94966.0,94928.0,0.3]
[1733855075817,0.3608,94974.0,94957.0,0.3608]
[1733855076010,0.03121048,94981.0,94945.0,0.052654]
[1733855076011,0.413447,94958.0,94945.0,0.052654]
[1733855076213,0.3608,94958.0,94950.0,0.3608]
[1733855076405,6e-05,94946.0,94945.0,0.052654]
[1733855076715,0.03121048,94981.0,94938.0,0.3608]
[1733855076716,0.3608,94968.0,94940.0,0.24595535]
[1733855076918,0.3608,94978.0,94954.0,0.3608]
[1733855077105,0.3608,94963.0,94954.0,0.3608]
[1733855077311,0.3608,94963.0,94959.0,0.052646]
[1733855077810,0.3608,94961.0,94950.0,0.052651]
[1733855078014,0.3608,94961.0,94954.0,0.052649]
[1733855078313,0.413445,94961.0,94954.0,0.052649]
[1733855078716,0.052648,94956.0,94945.0,0.054654]
[1733855078917,0.3608,94961.0,94949.0,0.3608]
[1733855079520,0.3638,94961.0,94945.0,0.01028995]
[1733855079715,0.3638,94961.0,94939.0,0.3608]
[1733855079716,0.003,94961.0,94960.0,0.3608]
[1733855079918,0.003,94961.0,94960.0,0.413445]
[1733855080613,0.3638,94961.0,94949.0,0.3608]
[1733855080917,0.003,94961.0,94960.0,0.052645]
[1733855081419,0.3608,94979.0,94960.0,0.052645]
[1733855081605,0.3608,94979.0,94966.0,0.052642]
[1733855081804,1e-08,94967.0,94966.0,0.052762]
[1733855082011,0.3608,94999.0,94989.0,0.052629]
[1733855082213,0.052627,94993.0,94989.0,0.052629]
[1733855082414,0.052627,94993.0,94979.0,0.3608]
[1733855082415,0.0542079,94991.0,94990.0,0.00012]
[1733855082607,0.413428,94991.0,94990.0,0.00012]
[1733855083006,0.41353792,94991.0,94990.0,0.00012]
[1733855084620,0.42416977,94991.0,94990.0,0.00012]
[1733855084918,0.00510992,94991.0,94990.0,0.00012]
[1733855085714,0.00510992,94991.0,94990.0,0.052749]
[1733855086027,0.05673792,94991.0,94990.0,0.00012]
[1733855086916,0.01460057,94991.0,94990.0,0.00012]
[1733855087115,0.00410992,94991.0,94990.0,0.00012]
[1733855087915,0.00010992,94991.0,94990.0,0.00112]
[1733855088712,0.00010992,94991.0,94990.0,0.00012]
[1733855088713,0.00410992,94991.0,94990.0,0.00012]
[1733855089513,0.00110992,94991.0,94990.0,0.00012]
[1733855089721,0.00157964,95010.0,95009.0,0.052618]
[1733855090219,0.00157964,95010.0,95009.0,0.052738]
[1733855090723,0.0016649,95010.0,95009.0,0.052738]
[1733855091225,8.526e-05,95010.0,95009.0,0.052738]
[1733855091516,8.526e-05,95010.0,95009.0,0.06294745]
[1733855092111,0.052604,95035.0,95033.0,0.052605]
[1733855092512,0.052604,95035.0,95034.0,0.00012]
[1733855092722,0.052601,95040.0,95039.0,0.052601]
[1733855092912,0.3608,95041.0,95034.0,0.00012]
[1733855092913,0.052603,95037.0,95034.0,0.00012]
[1733855093114,0.37117255,95041.0,95018.0,0.052613]
[1733855093417,0.37117255,95041.0,95013.0,0.3608]
[1733855093418,0.3608,95033.0,95013.0,0.3608]
[1733855093618,0.052606,95031.0,95027.0,0.052608]
[1733855093819,0.052606,95031.0,95026.0,0.052608]
[1733855094121,0.052607,95030.0,95028.0,0.052608]
[1733855095414,0.057607,95030.0,95028.0,0.052608]
[1733855095610,0.3608,95029.0,95012.0,0.052616]
[1733855095827,0.3608,95029.0,95005.0,0.0015789]
[1733855095828,0.3608,95029.0,95010.0,0.01065432]
[1733855096122,0.3608,95029.0,95020.0,0.052612]
[1733855096123,0.3608,95021.0,95020.0,0.052612]
[1733855097024,0.3608,95021.0,95011.0,0.413417]
[1733855097025,0.005,95030.0,95029.0,0.052607]
[1733855097228,0.3658,95030.0,95029.0,0.052607]
[1733855097522,0.3658,95030.0,95029.0,0.052727]
[1733855097925,0.3658,95030.0,95029.0,0.00012]
[1733855098326,0.3608,95030.0,95029.0,0.00012]
[1733855098646,0.413407,95030.0,95029.0,0.00012]
[1733855099328,0.418407,95030.0,95029.0,0.00012]
[1733855100821,0.3608,95031.0,95029.0,0.00012]
[1733855101022,0.057607,95030.0,95029.0,0.00012]
[1733855101226,0.057607,95030.0,95025.0,0.052609]
[1733855101227,0.052608,95028.0,95025.0,0.052609]
[1733855101627,6e-05,95026.0,95025.0,0.052609]
[1733855102424,6e-05,95026.0,95015.0,0.01065745]
[1733855102726,0.052619,95007.0,94997.0,0.00068]
[1733855102928,0.3608,95006.0,94985.0,0.02145187]
[1733855103127,0.052625,94996.0,94985.0,0.02145187]
[1733855103323,0.413425,94996.0,94985.0,0.02145187]
[1733855103731,0.413425,94996.0,94995.0,9.7e-07]
[1733855104230,0.413485,94996.0,94995.0,9.7e-07]
[1733855104721,0.413575,94996.0,94995.0,9.7e-07]
[1733855105635,0.052639,94971.0,94970.0,0.00157938]
[1733855105832,0.413439,94971.0,94970.0,0.00157938]
[1733855106536,0.413439,94971.0,94969.0,0.05264]
[1733855106537,0.00015097,94971.0,94969.0,0.05264]
[1733855107033,6e-05,94970.0,94969.0,0.05264]
[1733855107520,6e-05,94970.0,94969.0,0.06296369]
[1733855108522,6e-05,94970.0,94962.0,0.052644]
[1733855108523,0.4135,94970.0,94962.0,0.052644]
[1733855108725,0.36086,94970.0,94958.0,0.01028837]
[1733855108933,0.052646,94960.0,94951.0,0.0015797]
[1733855109123,6e-05,94959.0,94951.0,0.0542297]
[1733855109325,6e-05,94952.0,94951.0,0.0015797]
[1733855110238,0.3608,94966.0,94945.0,0.54621415]
[1733855110428,0.3608,94966.0,94948.0,0.79988733]
[1733855110623,0.3608,94966.0,94965.0,0.052643]
[1733855110824,9.097e-05,94971.0,94963.0,0.3608]
[1733855111024,9.097e-05,94971.0,94969.0,0.05264]
[1733855111223,0.3608,94987.0,94969.0,0.05264]
[1733855111224,0.3608,94987.0,94986.0,0.052631]
[1733855111425,0.3608,94987.0,94973.0,0.18804382]
[1733855111630,0.052634,94982.0,94976.0,0.052636]
[1733855111829,0.3608,94987.0,94973.0,0.052638]
[1733855111830,6e-05,94974.0,94973.0,0.052638]
[1733855112031,6e-05,94974.0,94973.0,0.60148182]
[1733855112227,6e-05,94974.0,94973.0,0.413438]
[1733855112424,6e-05,94974.0,94965.0,0.3608]
[1733855112631,0.052644,94963.0,94956.0,0.052647]
[1733855112935,6e-05,94959.0,94950.0,0.052651]
[1733855113135,6e-05,94959.0,94951.0,0.05265]
[1733855113828,6e-05,94959.0,94954.0,0.01024864]
[1733855114332,6e-05,94959.0,94948.0,0.3038]
[1733855114333,6e-05,94959.0,94946.0,0.3608]
[1733855114534,6e-05,94959.0,94940.0,0.01051575]
[1733855114736,6e-05,94959.0,94958.0,0.00357966]
[1733855114921,6e-05,94959.0,94958.0,0.002]
[1733855117825,6e-05,94959.0,94940.0,0.01051575]
[1733855118143,6e-05,94959.0,94958.0,0.052646]
[1733855118144,0.00506,94959.0,94958.0,0.052646]
[1733855118432,0.3608,94974.0,94971.0,0.052639]
[1733855118638,0.3608,94974.0,94953.0,0.5969]
[1733855118639,0.3608,94987.0,94973.0,0.052638]
[1733855118829,0.3608,95002.0,94977.0,0.3608]
[1733855119025,0.05262,95007.0,95003.0,0.052621]
[1733855119233,0.3608,95014.0,94977.0,0.3608]
[1733855119234,0.3608,95004.0,95001.0,0.00012]
[1733855119440,0.052622,95002.0,95001.0,0.00012]
[1733855119632,0.052639,94973.0,94964.0,0.052643]
[1733855119845,0.052639,94973.0,94955.0,0.24721887]
[1733855119846,0.3608,94973.0,94955.0,0.1880356]
[1733855120023,6e-05,94965.0,94964.0,0.052643]
[1733855120228,0.3608,94965.0,94956.0,0.3608]
[1733855120427,0.3608,94973.0,94962.0,0.052644]
[1733855120428,0.3608,94963.0,94962.0,0.052644]
[1733855120732,0.3608,94973.0,94953.0,0.60829172]
[1733855120925,0.3608,94965.0,94964.0,0.052643]
[1733855121234,0.3608,94965.0,94953.0,0.60757172]
[1733855121538,0.3608,94965.0,94958.0,0.052646]
[1733855121838,0.052647,94957.0,94956.0,0.002]
[1733855122041,0.3608,94964.0,94944.0,8.912e-05]
[1733855122337,0.413449,94953.0,94945.0,0.052654]
[1733855123035,0.3608,94953.0,94944.0,8.912e-05]
[1733855123236,0.3608,94953.0,94952.0,0.05422953]
[1733855123831,6e-05,94957.0,94956.0,0.052648]
[1733855124339,6e-05,94957.0,94956.0,0.052768]
[1733855125435,6e-05,94957.0,94956.0,0.055768]
[1733855125836,6e-05,94957.0,94956.0,0.00312]
[1733855126038,0.36086,94957.0,94956.0,0.00312]
[1733855126840,0.36086,94957.0,94956.0,0.00012]
[1733855127045,0.36086,94957.0,94956.0,0.00112]
[1733855127734,0.36086,94957.0,94956.0,0.00012]
[1733855128838,6e-05,94957.0,94956.0,0.00012]
[1733855129232,6e-05,94957.0,94943.0,0.3608]
[1733855129233,0.36086,94957.0,94940.0,0.1880356]
[1733855129442,0.052665,94925.0,94924.0,0.00072]
[1733855129641,0.774265,94925.0,94924.0,0.00072]
[1733855129836,0.052668,94919.0,94918.0,0.04608192]
[1733855130140,0.052678,94902.0,94891.0,0.052683]
[1733855130330,0.72168912,94901.0,94899.0,0.052679]
[1733855130534,0.72174912,94901.0,94895.0,0.0107121]
[1733855131243,0.71946492,94901.0,94895.0,0.0107121]
[1733855131740,0.3608,94887.0,94833.0,0.30902359]
[1733855131944,0.24660621,94850.0,94844.0,0.052709]
[1733855132141,0.3608,94847.0,94844.0,0.052709]
[1733855132342,0.3608,94847.0,94835.0,0.052714]
[1733855132533,0.3608,94836.0,94835.0,0.052715]
[1733855132734,0.00012254,94837.0,94835.0,0.66088166]
[1733855132933,0.3608,94863.0,94835.0,0.66088166]
[1733855133138,0.3608,94863.0,94862.0,0.0527]
[1733855134039,0.36189047,94863.0,94862.0,0.0527]
[1733855134342,0.36189047,94863.0,94843.0,0.3608]
[1733855134541,0.36089047,94863.0,94862.0,0.0547]
[1733855134848,0.37125261,94882.0,94871.0,0.052695]
[1733855134849,0.3608,94872.0,94871.0,0.052695]
[1733855135235,0.41404901,94882.0,94871.0,0.00012]
[1733855135540,0.3608,94880.0,94875.0,0.052692]
[1733855136040,0.3608,94895.0,94866.0,0.3608]
[1733855136041,0.413487,94886.0,94866.0,0.3608]
[1733855136243,0.413487,94886.0,94867.0,0.052697]
[1733855136543,0.413487,94886.0,94880.0,0.05269]
[1733855136744,0.052691,94879.0,94854.0,0.3125]
[1733855136947,0.052708,94849.0,94847.0,0.00158148]
[1733855137441,0.04905074,94849.0,94847.0,0.00158148]
[1733855138447,0.02541647,94849.0,94847.0,0.00358148]
[1733855139653,0.052726,94816.0,94800.0,0.1]
[1733855139951,0.3608,94828.0,94807.0,0.01044667]
[1733855140149,0.3608,94813.0,94807.0,0.01044667]
[1733855140451,0.34189258,94813.0,94812.0,0.052728]
[1733855140749,0.34197424,94813.0,94812.0,0.052728]
[1733855141135,0.34197424,94813.0,94812.0,0.054728]
[1733855141740,0.34497424,94813.0,94812.0,0.052728]
[1733855141944,0.052732,94804.0,94800.0,0.1]
[1733855142148,0.3608,94801.0,94800.0,0.1]
[1733855142444,0.36086,94801.0,94800.0,0.1]
[1733855143044,0.36094414,94801.0,94800.0,0.1]
[1733855143240,0.36094414,94801.0,94800.0,0.076]
[1733855143839,0.00014414,94801.0,94800.0,0.076]
[1733855144038,0.00014414,94801.0,94800.0,0.077]
[1733855144349,0.00014414,94801.0,94800.0,0.129734]
[1733855144645,0.00314414,94801.0,94800.0,0.129734]
[1733855145241,0.00414414,94801.0,94800.0,0.129734]
[1733855146049,0.00414414,94801.0,94800.0,0.128734]
[1733855146244,0.00414414,94801.0,94800.0,0.080734]
[1733855147048,0.00414414,94801.0,94800.0,0.081734]
[1733855147049,1.4e-07,94801.0,94800.0,0.081734]
[1733855147251,0.3608,94823.0,94822.0,0.052722]
[1733855147452,0.34349074,94823.0,94822.0,0.052722]
[1733855147748,0.3608,94832.0,94822.0,0.052722]
[1733855147942,0.3608,94842.0,94840.0,0.052712]
[1733855148149,0.00165928,94841.0,94840.0,0.052712]
[1733855148741,7.672e-05,94841.0,94840.0,0.052712]
[1733855149347,0.34702932,94842.0,94840.0,0.052712]
[1733855149746,0.34702932,94842.0,94841.0,0.00012]
[1733855150647,0.40574032,94842.0,94841.0,0.00012]
[1733855151249,0.35602932,94842.0,94841.0,0.00112]
[1733855151753,0.34802932,94842.0,94841.0,0.00012]
[1733855151957,0.35602932,94842.0,94841.0,0.00112]
[1733855152542,0.35602932,94842.0,94841.0,0.36192]
[1733855152543,0.009,94842.0,94841.0,0.36192]
[1733855152843,0.009,94842.0,94841.0,0.00112]
[1733855153352,0.009,94842.0,94841.0,0.36192]
[1733855153851,0.01,94842.0,94841.0,0.36192]
[1733855154053,0.01,94842.0,94841.0,0.01173163]
[1733855154349,0.36086,94855.0,94841.0,0.00012]
[1733855154350,0.3608,94845.0,94841.0,0.00012]
[1733855154551,0.003,94842.0,94841.0,0.052831]
[1733855154743,0.003,94842.0,94841.0,0.052711]
[1733855154940,0.3608,94845.0,94829.0,0.052718]
[1733855155153,0.3608,94845.0,94844.0,0.05271]
[1733855156446,0.36086,94855.0,94844.0,0.05271]
[1733855156649,0.36086,94855.0,94854.0,0.052704]
[1733855156847,0.36086,94855.0,94854.0,0.052824]
[1733855157757,0.36186,94855.0,94854.0,0.052824]
[1733855158141,0.001,94855.0,94854.0,0.052824]
[1733855158342,0.3608,94885.0,94877.0,0.052691]
[1733855158556,0.05269,94880.0,94878.0,0.052691]
[1733855159956,0.05369,94880.0,94878.0,0.052691]
[1733855160755,0.001,94880.0,94870.0,0.0105576]
[1733855160948,0.001,94880.0,94842.0,0.2891]
[1733855160949,0.3608,94871.0,94842.0,0.2891]
[1733855161263,0.052703,94857.0,94842.0,0.2891]
[1733855161450,0.052703,94857.0,94855.0,0.052704]
[1733855161847,0.052703,94857.0,94847.0,0.37135445]
[1733855161848,0.3608,94861.0,94847.0,0.01055445]
[1733855162048,6e-05,94871.0,94850.0,0.24660621]
[1733855162249,0.3608,94861.0,94860.0,0.052701]
[1733855162452,6e-05,94871.0,94870.0,0.052695]
[1733855162850,6e-05,94871.0,94870.0,0.052815]
[1733855163958,0.00906,94871.0,94870.0,0.053815]
[1733855164552,0.00806,94871.0,94870.0,0.053815]
[1733855165160,0.00806,94871.0,94870.0,0.06427424]
[1733855171263,0.00806,94871.0,94870.0,0.00112]
[1733855171458,0.00806,94871.0,94870.0,0.053815]
[1733855171661,0.060755,94871.0,94870.0,0.053815]
[1733855172058,0.360755,94871.0,94870.0,0.00112]
[1733855172362,0.360755,94871.0,94848.0,0.06296546]
[1733855172363,0.052707,94849.0,94848.0,0.06296546]
[1733855172567,0.413507,94849.0,94848.0,0.01025746]
[1733855172755,0.413507,94849.0,94846.0,0.052708]
[1733855172756,0.052709,94847.0,94846.0,0.052708]
[1733855173062,0.3608,94849.0,94848.0,0.052708]
[1733855173692,0.3608,94857.0,94837.0,0.052713]
[1733855173859,0.052704,94855.0,94848.0,0.001]
[1733855174168,0.3608,94857.0,94848.0,0.053828]
[1733855174349,0.3608,94857.0,94856.0,0.052703]
[1733855174555,0.00064,94870.0,94869.0,0.052696]
[1733855174764,6e-05,94871.0,94866.0,0.3608]
[1733855174959,6e-05,94871.0,94870.0,0.052695]
[1733855175162,6e-05,94871.0,94870.0,0.052815]
[1733855177458,0.00906,94871.0,94870.0,0.053815]
[1733855177969,0.09415607,94890.0,94870.0,0.36192]
[1733855178170,0.3608,94893.0,94890.0,0.052684]
[1733855178357,0.09415607,94900.0,94892.0,0.413483]
[1733855178668,0.3608,94904.0,94900.0,0.052679]
[1733855179059,0.3608,94904.0,94900.0,0.052799]
[1733855180162,0.45559607,94917.0,94900.0,0.052799]
[1733855180163,0.36144,94917.0,94900.0,0.413599]
[1733855180366,0.01024895,94930.0,94916.0,0.3608]
[1733855180367,0.09415607,94928.0,94916.0,0.3608]
[1733855180567,0.25696015,94930.0,94900.0,0.0107117]
[1733855180568,0.002,94901.0,94900.0,0.0107117]
[1733855180760,0.002,94901.0,94893.0,0.0207271]
[1733855180761,0.052683,94894.0,94893.0,0.052682]
[1733855180961,0.052679,94900.0,94886.0,0.052686]
[1733855181165,0.3608,94896.0,94895.0,0.052681]
[1733855181861,0.001,94901.0,94899.0,0.052679]
[1733855182057,0.001,94901.0,94893.0,0.052681]
[1733855182058,0.3608,94900.0,94893.0,0.052681]
[1733855182265,0.3608,94900.0,94899.0,0.052679]
[1733855182862,0.001,94901.0,94900.0,0.052679]
[1733855183269,0.3608,94908.0,94907.0,0.052675]